[Event "Late-Titled-Tuesday-Blitz-January-16-2024"]
[Site "Chess.com"]
[Date "2024.01.16"]
[Round "5"]
[White "agvega14"]
[Black "ikhasu"]
[Result "1-0"]
[WhiteElo "2138"]
[BlackElo "2396"]
[TimeControl "180+1"]
[EndTime "14:53:54 PST"]
[Termination "agvega14 won by checkmate"]

1. e4 {[%clk 0:02:53.2]} 1... c5 {[%clk 0:02:59.5]} 2. Nf3 {[%clk 0:02:50.4]}
2... Nc6 {[%clk 0:02:58.2]} 3. c3 {[%clk 0:02:49.4]} 3... Nf6 {[%clk 0:02:57.1]}
4. Bd3 {[%clk 0:02:49]} 4... d6 {[%clk 0:02:54]} 5. Bc2 {[%clk 0:02:48.1]} 5...
Bg4 {[%clk 0:02:52.1]} 6. d3 {[%clk 0:02:45.2]} 6... e5 {[%clk 0:02:49.9]} 7.
Be3 {[%clk 0:02:40.6]} 7... Be7 {[%clk 0:02:50.1]} 8. Nbd2 {[%clk 0:02:40.6]}
8... d5 {[%clk 0:02:49.5]} 9. h3 {[%clk 0:02:33.6]} 9... Bxf3 {[%clk 0:02:47.8]}
10. Nxf3 {[%clk 0:02:31.5]} 10... d4 {[%clk 0:02:48.1]} 11. Bg5 {[%clk
0:02:22.8]} 11... Nd7 {[%clk 0:02:47.2]} 12. Bxe7 {[%clk 0:02:22.2]} 12... Qxe7
{[%clk 0:02:47]} 13. Bb3 {[%clk 0:02:19.2]} 13... O-O {[%clk 0:02:38.5]} 14. a3
{[%clk 0:02:15.2]} 14... Rad8 {[%clk 0:02:37.6]} 15. Rc1 {[%clk 0:02:12.3]}
15... Kh8 {[%clk 0:02:36.6]} 16. g4 {[%clk 0:02:04.4]} 16... b5 {[%clk
0:02:33.1]} 17. cxd4 {[%clk 0:01:57.8]} 17... exd4 {[%clk 0:02:20.6]} 18. Bd5
{[%clk 0:01:39.5]} 18... Nde5 {[%clk 0:02:14]} 19. O-O {[%clk 0:01:17.7]} 19...
Nxf3+ {[%clk 0:02:03.8]} 20. Qxf3 {[%clk 0:01:18.6]} 20... Ne5 {[%clk
0:02:03.2]} 21. Qg3 {[%clk 0:01:17.9]} 21... c4 {[%clk 0:01:59.2]} 22. dxc4
{[%clk 0:01:17.8]} 22... Nxc4 {[%clk 0:01:56.3]} 23. Bxc4 {[%clk 0:00:40.6]}
23... bxc4 {[%clk 0:01:56]} 24. Rxc4 {[%clk 0:00:41.3]} 24... Qxe4 {[%clk
0:01:55.7]} 25. Rd1 {[%clk 0:00:41.4]} 25... Rfe8 {[%clk 0:01:48.8]} 26. Qd3
{[%clk 0:00:38.9]} 26... f5 {[%clk 0:01:26.2]} 27. Rxd4 {[%clk 0:00:23.8]} 27...
Rxd4 {[%clk 0:01:15.4]} 28. Qxd4 {[%clk 0:00:23.5]} 28... Qf3 {[%clk 0:01:15.4]}
29. Qd3 {[%clk 0:00:15.5]} 29... fxg4 {[%clk 0:01:13.7]} 30. Qxf3 {[%clk
0:00:14]} 30... gxf3 {[%clk 0:01:13.7]} 31. Rd3 {[%clk 0:00:14]} 31... Rf8
{[%clk 0:01:11.5]} 32. Kh2 {[%clk 0:00:13.8]} 32... h5 {[%clk 0:01:02.7]} 33.
Kg3 {[%clk 0:00:13.9]} 33... Rb8 {[%clk 0:01:00.7]} 34. b4 {[%clk 0:00:13.5]}
34... g5 {[%clk 0:00:57.7]} 35. Kxf3 {[%clk 0:00:12.3]} 35... Rf8+ {[%clk
0:00:52.7]} 36. Kg3 {[%clk 0:00:12.3]} 36... Re8 {[%clk 0:00:52.1]} 37. Rd5
{[%clk 0:00:09.8]} 37... Rg8 {[%clk 0:00:45.2]} 38. b5 {[%clk 0:00:08.3]} 38...
Rg7 {[%clk 0:00:44.5]} 39. a4 {[%clk 0:00:08.3]} 39... Kh7 {[%clk 0:00:44.4]}
40. a5 {[%clk 0:00:08.4]} 40... Kg6 {[%clk 0:00:43.5]} 41. b6 {[%clk 0:00:07.7]}
41... axb6 {[%clk 0:00:43.5]} 42. axb6 {[%clk 0:00:07.7]} 42... Rb7 {[%clk
0:00:43.9]} 43. Rb5 {[%clk 0:00:06.2]} 43... Kf6 {[%clk 0:00:44.2]} 44. h4
{[%clk 0:00:04.7]} 44... gxh4+ {[%clk 0:00:42.4]} 45. Kxh4 {[%clk 0:00:04.8]}
45... Kg6 {[%clk 0:00:42.4]} 46. f4 {[%clk 0:00:04.7]} 46... Kf6 {[%clk
0:00:40.2]} 47. Kxh5 {[%clk 0:00:04.4]} 47... Ke6 {[%clk 0:00:40.6]} 48. Kg5
{[%clk 0:00:04.3]} 48... Kf7 {[%clk 0:00:40.7]} 49. f5 {[%clk 0:00:04.6]} 49...
Kg7 {[%clk 0:00:40.4]} 50. f6+ {[%clk 0:00:05]} 50... Kf7 {[%clk 0:00:40.8]} 51.
Kf5 {[%clk 0:00:05.7]} 51... Rb8 {[%clk 0:00:40.8]} 52. b7 {[%clk 0:00:05.5]}
52... Rh8 {[%clk 0:00:38.9]} 53. Rb6 {[%clk 0:00:04.5]} 53... Rb8 {[%clk
0:00:35.7]} 54. Ke5 {[%clk 0:00:04.7]} 54... Re8+ {[%clk 0:00:35.8]} 55. Kd5
{[%clk 0:00:04.9]} 55... Rd8+ {[%clk 0:00:35.7]} 56. Kc5 {[%clk 0:00:05.3]}
56... Rb8 {[%clk 0:00:35.6]} 57. Kc6 {[%clk 0:00:03.5]} 57... Ke6 {[%clk
0:00:34]} 58. Kc7+ {[%clk 0:00:04.1]} 58... Kf7 {[%clk 0:00:32.9]} 59. Kxb8
{[%clk 0:00:04.8]} 59... Kf8 {[%clk 0:00:31.9]} 60. Kc7 {[%clk 0:00:05.5]} 60...
Kf7 {[%clk 0:00:31.9]} 61. b8=Q {[%clk 0:00:05.9]} 61... Kg6 {[%clk 0:00:31.5]}
62. Qg8+ {[%clk 0:00:05.9]} 62... Kf5 {[%clk 0:00:31.6]} 63. f7 {[%clk
0:00:06.3]} 63... Ke5 {[%clk 0:00:32.5]} 64. f8=Q {[%clk 0:00:06.3]} 64... Kd4
{[%clk 0:00:32.8]} 65. Qd8+ {[%clk 0:00:05]} 65... Kc3 {[%clk 0:00:33.7]} 66.
Qgd5 {[%clk 0:00:04.9]} 66... Kc2 {[%clk 0:00:33.9]} 67. Qd2# {[%clk 0:00:05.5]}
1-0

[Event "Late-Titled-Tuesday-Blitz-January-16-2024"]
[Site "Chess.com"]
[Date "2024.01.16"]
[Round "5"]
[White "Aguiar94"]
[Black "aceontheturn"]
[Result "0-1"]
[WhiteElo "2526"]
[BlackElo "2751"]
[TimeControl "180+1"]
[EndTime "14:53:56 PST"]
[Termination "aceontheturn won by resignation"]

1. e4 {[%clk 0:02:51.4]} 1... e6 {[%clk 0:03:00.2]} 2. d4 {[%clk 0:02:49.1]}
2... d5 {[%clk 0:03:01.1]} 3. Nd2 {[%clk 0:02:45.3]} 3... c5 {[%clk 0:03:00.6]}
4. Ngf3 {[%clk 0:02:40.6]} 4... Nc6 {[%clk 0:02:57.3]} 5. Bb5 {[%clk 0:02:39.4]}
5... cxd4 {[%clk 0:02:48.3]} 6. Nxd4 {[%clk 0:02:40.3]} 6... Bd7 {[%clk
0:02:47.5]} 7. Nxc6 {[%clk 0:02:40.3]} 7... Bxc6 {[%clk 0:02:45.7]} 8. Bxc6+
{[%clk 0:02:40.5]} 8... bxc6 {[%clk 0:02:46.6]} 9. Qe2 {[%clk 0:02:38.6]} 9...
Nf6 {[%clk 0:02:44.2]} 10. O-O {[%clk 0:02:37]} 10... Be7 {[%clk 0:02:44.1]} 11.
b3 {[%clk 0:02:19.1]} 11... O-O {[%clk 0:02:42.2]} 12. Bb2 {[%clk 0:02:17.6]}
12... a5 {[%clk 0:02:42.9]} 13. a4 {[%clk 0:02:11.2]} 13... Bb4 {[%clk
0:02:26.2]} 14. exd5 {[%clk 0:01:57.6]} 14... cxd5 {[%clk 0:02:20.7]} 15. Nf3
{[%clk 0:01:57.5]} 15... Rc8 {[%clk 0:02:19.6]} 16. Rad1 {[%clk 0:01:56.3]}
16... Bc3 {[%clk 0:02:16.8]} 17. Ba3 {[%clk 0:01:42.7]} 17... Re8 {[%clk
0:02:16.3]} 18. Nd4 {[%clk 0:01:41.2]} 18... Ne4 {[%clk 0:02:10.4]} 19. Nb5
{[%clk 0:01:38.9]} 19... Qb6 {[%clk 0:01:54.7]} 20. Kh1 {[%clk 0:01:30.9]} 20...
Bf6 {[%clk 0:01:38.8]} 21. c4 {[%clk 0:00:56.9]} 21... Nc3 {[%clk 0:01:19.9]}
22. Nxc3 {[%clk 0:00:55.4]} 22... Bxc3 {[%clk 0:01:20.8]} 23. Qc2 {[%clk
0:00:47.5]} 23... Bb4 {[%clk 0:01:19.8]} 24. Bb2 {[%clk 0:00:40.8]} 24... dxc4
{[%clk 0:01:20]} 25. bxc4 {[%clk 0:00:40.8]} 25... Qc6 {[%clk 0:01:19.6]} 26.
Rd4 {[%clk 0:00:37.6]} 26... Red8 {[%clk 0:01:14.1]} 27. Rg4 {[%clk 0:00:31.2]}
27... Bf8 {[%clk 0:01:13.2]} 28. Bf6 {[%clk 0:00:24.5]} 28... h5 {[%clk
0:00:56.5]} 29. Rg5 {[%clk 0:00:16.5]} 29... Rd5 {[%clk 0:00:45.1]} 30. Rg3
{[%clk 0:00:14.3]} 30... Qxc4 {[%clk 0:00:43.6]} 31. Qb1 {[%clk 0:00:12.4]}
31... h4 {[%clk 0:00:30.7]} 32. Rc3 {[%clk 0:00:11.5]} 32... Qa6 {[%clk
0:00:25.9]} 33. Rxc8 {[%clk 0:00:12.2]} 33... Qxc8 {[%clk 0:00:26.8]} 34. Bxh4
{[%clk 0:00:12.7]} 34... Qc4 {[%clk 0:00:24.3]} 35. Bg3 {[%clk 0:00:12.3]} 35...
Qxa4 {[%clk 0:00:24.6]} 36. h3 {[%clk 0:00:12.1]} 36... Qb4 {[%clk 0:00:24.2]}
37. Qc1 {[%clk 0:00:11.5]} 37... a4 {[%clk 0:00:23.5]} 38. Qc2 {[%clk 0:00:11]}
38... a3 {[%clk 0:00:23.6]} 39. Rb1 {[%clk 0:00:11.7]} 39... Qd2 {[%clk
0:00:19.8]} 40. Qa4 {[%clk 0:00:10.4]} 40... Ra5 {[%clk 0:00:13.5]} 41. Qe8
{[%clk 0:00:08.3]} 41... Qb2 {[%clk 0:00:05.5]} 42. Rd1 {[%clk 0:00:07.1]} 42...
a2 {[%clk 0:00:04]} 43. Bd6 {[%clk 0:00:05.1]} 43... a1=Q {[%clk 0:00:02.7]} 44.
Qxf8+ {[%clk 0:00:05.3]} 44... Kh7 {[%clk 0:00:03.3]} 45. Rxa1 {[%clk
0:00:05.8]} 45... Rxa1+ {[%clk 0:00:04.2]} 46. Kh2 {[%clk 0:00:06.4]} 46... Qxf2
{[%clk 0:00:03.3]} 47. Bc5 {[%clk 0:00:07]} 47... Qf4+ {[%clk 0:00:02.7]} 48. g3
{[%clk 0:00:07.2]} 48... Qd2+ {[%clk 0:00:02.5]} 0-1

[Event "Late-Titled-Tuesday-Blitz-January-16-2024"]
[Site "Chess.com"]
[Date "2024.01.16"]
[Round "5"]
[White "DarkAlekhine"]
[Black "jmpion"]
[Result "1-0"]
[WhiteElo "2725"]
[BlackElo "2523"]
[TimeControl "180+1"]
[EndTime "14:54:00 PST"]
[Termination "DarkAlekhine won by resignation"]

1. c4 {[%clk 0:03:00.9]} 1... e5 {[%clk 0:02:59.6]} 2. Nc3 {[%clk 0:02:59.8]}
2... Nf6 {[%clk 0:02:56.8]} 3. g3 {[%clk 0:02:59]} 3... d5 {[%clk 0:02:54.3]} 4.
cxd5 {[%clk 0:02:59.9]} 4... Nxd5 {[%clk 0:02:55.2]} 5. Bg2 {[%clk 0:02:59.5]}
5... Nb6 {[%clk 0:02:54.6]} 6. Nf3 {[%clk 0:02:52.7]} 6... Nc6 {[%clk
0:02:54.3]} 7. O-O {[%clk 0:02:48.3]} 7... Be7 {[%clk 0:02:50.1]} 8. d3 {[%clk
0:02:46.7]} 8... O-O {[%clk 0:02:49.7]} 9. Be3 {[%clk 0:02:28.8]} 9... Re8
{[%clk 0:02:37.9]} 10. Rc1 {[%clk 0:02:28.9]} 10... Bf8 {[%clk 0:02:31.8]} 11.
a3 {[%clk 0:02:29]} 11... a5 {[%clk 0:02:24.5]} 12. Nb5 {[%clk 0:02:25.6]} 12...
Nd5 {[%clk 0:02:23.3]} 13. Bc5 {[%clk 0:02:19.5]} 13... Bxc5 {[%clk 0:01:46.5]}
14. Rxc5 {[%clk 0:02:20.4]} 14... Be6 {[%clk 0:01:47.2]} 15. Qd2 {[%clk
0:02:05]} 15... f6 {[%clk 0:01:42.9]} 16. Rfc1 {[%clk 0:01:59.4]} 16... Nde7
{[%clk 0:01:42.2]} 17. e4 {[%clk 0:01:12.4]} 17... Qd7 {[%clk 0:01:39.1]} 18. d4
{[%clk 0:01:12.1]} 18... Nxd4 {[%clk 0:01:29.4]} 19. Nbxd4 {[%clk 0:01:09.2]}
19... exd4 {[%clk 0:01:29.6]} 20. Rxc7 {[%clk 0:01:09.4]} 20... Qd6 {[%clk
0:01:27.1]} 21. Qxd4 {[%clk 0:01:09.3]} 21... Rad8 {[%clk 0:01:21.1]} 22. Qxd6
{[%clk 0:01:08.5]} 22... Rxd6 {[%clk 0:01:22]} 23. Rxb7 {[%clk 0:01:09.3]} 23...
Red8 {[%clk 0:01:05.8]} 24. Rxe7 {[%clk 0:00:57.1]} 24... Rd1+ {[%clk
0:01:04.5]} 25. Rxd1 {[%clk 0:00:57.4]} 25... Rxd1+ {[%clk 0:01:05.4]} 26. Bf1
{[%clk 0:00:57.9]} 26... Bg4 {[%clk 0:00:43.9]} 27. Kg2 {[%clk 0:00:43.9]} 27...
Bxf3+ {[%clk 0:00:44.3]} 28. Kxf3 {[%clk 0:00:44.8]} 28... Rxf1 {[%clk 0:00:45]}
29. h4 {[%clk 0:00:35.2]} 29... Rb1 {[%clk 0:00:44.3]} 30. Rb7 {[%clk
0:00:34.4]} 30... a4 {[%clk 0:00:43.2]} 31. Kf4 {[%clk 0:00:27.2]} 31... Rf1
{[%clk 0:00:37.9]} 32. f3 {[%clk 0:00:27.1]} 32... Rf2 {[%clk 0:00:36.9]} 33. h5
{[%clk 0:00:25.9]} 33... h6 {[%clk 0:00:27.6]} 34. g4 {[%clk 0:00:24.1]} 34...
Kh7 {[%clk 0:00:26.5]} 35. Rb4 {[%clk 0:00:23.4]} 35... Kg8 {[%clk 0:00:25.7]}
36. Rxa4 {[%clk 0:00:22.8]} 36... Rxb2 {[%clk 0:00:25.8]} 37. Rb4 {[%clk
0:00:22.2]} 37... Ra2 {[%clk 0:00:25]} 38. Rb3 {[%clk 0:00:22.5]} 38... Kh7
{[%clk 0:00:24.5]} 39. Kf5 {[%clk 0:00:22.2]} 39... Ra1 {[%clk 0:00:24.7]} 40.
f4 {[%clk 0:00:21.6]} 40... Ra2 {[%clk 0:00:23.7]} 41. Rf3 {[%clk 0:00:11]}
41... Kg8 {[%clk 0:00:20.3]} 42. Kg6 {[%clk 0:00:11.2]} 42... Kf8 {[%clk
0:00:11.8]} 43. Rb3 {[%clk 0:00:10.4]} 43... Rg2 {[%clk 0:00:11.7]} 44. Rb8+
{[%clk 0:00:07.9]} 44... Ke7 {[%clk 0:00:12]} 45. Kf5 {[%clk 0:00:06.2]} 45...
Kf7 {[%clk 0:00:11.6]} 46. Rb7+ {[%clk 0:00:06.2]} 46... Kg8 {[%clk 0:00:12]}
47. a4 {[%clk 0:00:06]} 47... Ra2 {[%clk 0:00:10.9]} 48. Ra7 {[%clk 0:00:06.3]}
48... Rc2 {[%clk 0:00:10.1]} 49. Kg6 {[%clk 0:00:05.5]} 49... Kf8 {[%clk
0:00:10.7]} 50. Rf7+ {[%clk 0:00:05.1]} 50... Ke8 {[%clk 0:00:10.4]} 51. Rxg7
{[%clk 0:00:06]} 51... Rc4 {[%clk 0:00:11.1]} 52. f5 {[%clk 0:00:05.9]} 52...
Rxe4 {[%clk 0:00:11.3]} 53. Kxf6 {[%clk 0:00:06.4]} 53... Rxg4 {[%clk
0:00:11.7]} 54. Rxg4 {[%clk 0:00:06.5]} 1-0

[Event "Late-Titled-Tuesday-Blitz-January-16-2024"]
[Site "Chess.com"]
[Date "2024.01.16"]
[Round "5"]
[White "Navyblue1"]
[Black "IranianCheetah"]
[Result "0-1"]
[WhiteElo "2186"]
[BlackElo "2372"]
[TimeControl "180+1"]
[EndTime "14:54:04 PST"]
[Termination "IranianCheetah won by resignation"]

1. d4 {[%clk 0:02:56.1]} 1... d5 {[%clk 0:03:00.2]} 2. c4 {[%clk 0:02:51.5]}
2... c6 {[%clk 0:03:00.6]} 3. cxd5 {[%clk 0:02:35.6]} 3... cxd5 {[%clk
0:03:01.5]} 4. Nc3 {[%clk 0:02:34.7]} 4... Nf6 {[%clk 0:03:02.4]} 5. Bf4 {[%clk
0:02:33.2]} 5... Nc6 {[%clk 0:03:02.9]} 6. e3 {[%clk 0:02:33.2]} 6... a6 {[%clk
0:03:03.4]} 7. Nf3 {[%clk 0:02:30.4]} 7... Bg4 {[%clk 0:03:02.1]} 8. Be2 {[%clk
0:02:30.4]} 8... e6 {[%clk 0:03:02.2]} 9. h3 {[%clk 0:02:26.8]} 9... Bh5 {[%clk
0:03:02.1]} 10. O-O {[%clk 0:02:24.3]} 10... Rc8 {[%clk 0:03:01.6]} 11. Rc1
{[%clk 0:02:22.8]} 11... Bd6 {[%clk 0:02:58.4]} 12. Bxd6 {[%clk 0:02:21.8]}
12... Qxd6 {[%clk 0:02:59.3]} 13. Re1 {[%clk 0:02:21.1]} 13... O-O {[%clk
0:02:59.3]} 14. Qc2 {[%clk 0:02:17.8]} 14... b5 {[%clk 0:02:42]} 15. Qb1 {[%clk
0:02:08.2]} 15... Rc7 {[%clk 0:02:26.7]} 16. Red1 {[%clk 0:01:27.4]} 16... Rfc8
{[%clk 0:02:04.6]} 17. e4 {[%clk 0:01:22.7]} 17... dxe4 {[%clk 0:02:00.3]} 18.
Nxe4 {[%clk 0:01:21.6]} 18... Nxe4 {[%clk 0:01:59.1]} 19. Qxe4 {[%clk
0:01:20.9]} 19... Bxf3 {[%clk 0:01:18]} 20. Bxf3 {[%clk 0:01:03.9]} 20... Nxd4
{[%clk 0:01:00.9]} 21. Rxc7 {[%clk 0:01:00.2]} 21... Nxf3+ {[%clk 0:00:59.7]}
22. Qxf3 {[%clk 0:00:58.3]} 22... Qxc7 {[%clk 0:01:00]} 23. Qd3 {[%clk
0:00:54.7]} 23... g6 {[%clk 0:00:59.2]} 24. Qd6 {[%clk 0:00:50.5]} 24... Qxd6
{[%clk 0:00:46.2]} 25. Rxd6 {[%clk 0:00:47.5]} 25... Rc1+ {[%clk 0:00:47.1]} 26.
Kh2 {[%clk 0:00:47.1]} 26... Rc2 {[%clk 0:00:48]} 27. Rxa6 {[%clk 0:00:45.2]}
27... Rxf2 {[%clk 0:00:46.8]} 28. b3 {[%clk 0:00:43.8]} 28... Kg7 {[%clk
0:00:37.2]} 29. Ra5 {[%clk 0:00:42.1]} 29... b4 {[%clk 0:00:35.3]} 30. Ra4
{[%clk 0:00:40.2]} 30... h5 {[%clk 0:00:25.6]} 31. Rxb4 {[%clk 0:00:36.5]} 31...
Rxa2 {[%clk 0:00:25.3]} 32. Rb8 {[%clk 0:00:36.1]} 32... Kf6 {[%clk 0:00:24]}
33. Kg3 {[%clk 0:00:35.2]} 33... h4+ {[%clk 0:00:20.8]} 34. Kf3 {[%clk
0:00:33.4]} 34... g5 {[%clk 0:00:18.8]} 35. b4 {[%clk 0:00:33.7]} 35... Rb2
{[%clk 0:00:17.7]} 36. b5 {[%clk 0:00:33.6]} 36... Ke5 {[%clk 0:00:16.9]} 37. b6
{[%clk 0:00:33.8]} 37... f5 {[%clk 0:00:14.6]} 38. b7 {[%clk 0:00:33.6]} 38...
Rb3+ {[%clk 0:00:13.9]} 39. Kf2 {[%clk 0:00:33.2]} 39... g4 {[%clk 0:00:14]} 40.
hxg4 {[%clk 0:00:33.6]} 40... fxg4 {[%clk 0:00:14.5]} 41. Rh8 {[%clk 0:00:29.2]}
41... g3+ {[%clk 0:00:12.9]} 42. Ke2 {[%clk 0:00:29.4]} 42... Rxb7 {[%clk
0:00:11.7]} 43. Rxh4 {[%clk 0:00:29.9]} 43... Rb3 {[%clk 0:00:08.4]} 44. Ra4
{[%clk 0:00:26.1]} 44... Kf5 {[%clk 0:00:07.9]} 45. Ra8 {[%clk 0:00:25.4]} 45...
e5 {[%clk 0:00:07.9]} 46. Ra4 {[%clk 0:00:23.2]} 46... Rc3 {[%clk 0:00:06.6]}
47. Rh4 {[%clk 0:00:21.3]} 47... Ra3 {[%clk 0:00:05.8]} 48. Rh8 {[%clk
0:00:20.7]} 48... Kf4 {[%clk 0:00:04.9]} 49. Rf8+ {[%clk 0:00:20.9]} 49... Ke4
{[%clk 0:00:05.3]} 50. Rb8 {[%clk 0:00:19.4]} 50... Ra2+ {[%clk 0:00:05.4]} 51.
Kf1 {[%clk 0:00:19.6]} 51... Rf2+ {[%clk 0:00:02.6]} 52. Kg1 {[%clk 0:00:19.4]}
52... Ke3 {[%clk 0:00:01.6]} 53. Rb3+ {[%clk 0:00:19.5]} 53... Kf4 {[%clk
0:00:02]} 54. Rb4+ {[%clk 0:00:19.5]} 54... e4 {[%clk 0:00:01.8]} 55. Rb8 {[%clk
0:00:17.7]} 55... Rc2 {[%clk 0:00:02.5]} 56. Rf8+ {[%clk 0:00:18]} 56... Ke3
{[%clk 0:00:03]} 57. Rf1 {[%clk 0:00:17.5]} 57... Kd2 {[%clk 0:00:03.3]} 58. Ra1
{[%clk 0:00:16]} 58... e3 {[%clk 0:00:03.7]} 0-1

[Event "Late-Titled-Tuesday-Blitz-January-16-2024"]
[Site "Chess.com"]
[Date "2024.01.16"]
[Round "5"]
[White "Incognito_Knight"]
[Black "Nouali_Mohamed"]
[Result "1-0"]
[WhiteElo "2752"]
[BlackElo "2545"]
[TimeControl "180+1"]
[EndTime "14:54:09 PST"]
[Termination "Incognito_Knight won on time"]

1. e4 {[%clk 0:03:00.9]} 1... c5 {[%clk 0:02:57.5]} 2. d4 {[%clk 0:03:00.8]}
2... cxd4 {[%clk 0:02:57.6]} 3. Qxd4 {[%clk 0:03:01.7]} 3... e5 {[%clk
0:02:58.2]} 4. Qxe5+ {[%clk 0:02:59.8]} 4... Ne7 {[%clk 0:02:52.7]} 5. Nf3
{[%clk 0:02:53.8]} 5... Nc6 {[%clk 0:02:51.9]} 6. Qg3 {[%clk 0:02:53.5]} 6... d5
{[%clk 0:02:44.8]} 7. Nc3 {[%clk 0:02:48.4]} 7... dxe4 {[%clk 0:02:33.5]} 8. Nb5
{[%clk 0:02:15.6]} 8... Nf5 {[%clk 0:02:09.7]} 9. Nc7+ {[%clk 0:02:04.8]} 9...
Kd7 {[%clk 0:02:09]} 10. Qf4 {[%clk 0:02:05.2]} 10... Bd6 {[%clk 0:02:08.3]} 11.
Qxf5+ {[%clk 0:01:55.4]} 11... Kxc7 {[%clk 0:02:07.8]} 12. Qxf7+ {[%clk
0:01:51.5]} 12... Bd7 {[%clk 0:02:06.7]} 13. Ng5 {[%clk 0:01:47]} 13... Re8
{[%clk 0:01:52.5]} 14. Bf4 {[%clk 0:01:43.5]} 14... Ne5 {[%clk 0:01:43.9]} 15.
Qb3 {[%clk 0:01:23.9]} 15... h6 {[%clk 0:01:29.7]} 16. Nxe4 {[%clk 0:01:08.6]}
16... Bc6 {[%clk 0:01:22.6]} 17. Bb5 {[%clk 0:00:50.4]} 17... Bxe4 {[%clk
0:00:56.3]} 18. Bxe8 {[%clk 0:00:47.8]} 18... Qxe8 {[%clk 0:00:56.3]} 19. O-O-O
{[%clk 0:00:41.6]} 19... Nd3+ {[%clk 0:00:47.2]} 20. cxd3 {[%clk 0:00:37.8]}
20... Bxf4+ {[%clk 0:00:47.3]} 21. Kb1 {[%clk 0:00:38.4]} 21... Bc6 {[%clk
0:00:45.2]} 22. Rhe1 {[%clk 0:00:38.4]} 22... Qd7 {[%clk 0:00:45.1]} 23. d4
{[%clk 0:00:35.7]} 23... Qf5+ {[%clk 0:00:39.3]} 24. Ka1 {[%clk 0:00:34.5]}
24... Rd8 {[%clk 0:00:39.7]} 25. d5 {[%clk 0:00:29.2]} 25... Rxd5 {[%clk
0:00:36.3]} 26. Re7+ {[%clk 0:00:23.2]} 26... Kb8 {[%clk 0:00:31.3]} 27. Rxd5
{[%clk 0:00:16.8]} 27... Qxd5 {[%clk 0:00:32.2]} 28. Qxd5 {[%clk 0:00:13.8]}
28... Bxd5 {[%clk 0:00:33.1]} 29. Rxg7 {[%clk 0:00:12.8]} 29... Bxh2 {[%clk
0:00:30.8]} 30. g3 {[%clk 0:00:04.9]} 30... h5 {[%clk 0:00:25.2]} 31. Rg5 {[%clk
0:00:02.7]} 31... Bf3 {[%clk 0:00:25.5]} 32. Rf5 {[%clk 0:00:02.6]} 32... Bg4
{[%clk 0:00:25.1]} 33. Rf8+ {[%clk 0:00:02.7]} 33... Kc7 {[%clk 0:00:24.9]} 34.
Rf7+ {[%clk 0:00:03.6]} 34... Kb6 {[%clk 0:00:24.7]} 35. Kb1 {[%clk 0:00:03.8]}
35... a5 {[%clk 0:00:16.2]} 36. Kc1 {[%clk 0:00:03.9]} 36... a4 {[%clk
0:00:13.9]} 37. Kd2 {[%clk 0:00:03.4]} 37... h4 {[%clk 0:00:12.6]} 38. gxh4
{[%clk 0:00:04.3]} 38... Be5 {[%clk 0:00:13.2]} 39. b3 {[%clk 0:00:03.7]} 39...
axb3 {[%clk 0:00:11.9]} 40. axb3 {[%clk 0:00:04.6]} 40... Be6 {[%clk 0:00:11]}
41. Re7 {[%clk 0:00:04.7]} 41... Bf4+ {[%clk 0:00:10.8]} 42. Kc3 {[%clk
0:00:04.5]} 42... Bd5 {[%clk 0:00:07.8]} 43. h5 {[%clk 0:00:04]} 43... Bg5
{[%clk 0:00:06.8]} 44. Re8 {[%clk 0:00:03.7]} 44... Bf6+ {[%clk 0:00:06.2]} 45.
Kd2 {[%clk 0:00:03.4]} 45... Bg5+ {[%clk 0:00:06.6]} 46. Ke1 {[%clk 0:00:02.9]}
46... Bf7 {[%clk 0:00:07.5]} 47. Re5 {[%clk 0:00:02.7]} 47... Bf6 {[%clk
0:00:06.9]} 48. Rf5 {[%clk 0:00:03.2]} 48... Bc3+ {[%clk 0:00:07.4]} 49. Kf1
{[%clk 0:00:03.8]} 49... Be6 {[%clk 0:00:07.5]} 50. Rf3 {[%clk 0:00:03.5]} 50...
Bd2 {[%clk 0:00:06.6]} 51. Rf6 {[%clk 0:00:02.8]} 1-0